[Event "Late-Titled-Tuesday-Blitz-October-24-2023"]
[Site "Chess.com"]
[Date "2023.10.24"]
[Round "4"]
[White "pooh2012"]
[Black "Maitreia"]
[Result "1-0"]
[WhiteElo "2470"]
[BlackElo "2633"]
[TimeControl "180+1"]
[EndTime "14:40:59 PDT"]
[Termination "pooh2012 won by checkmate"]

1. d4 {[%clk 0:03:00.9]} 1... Nf6 {[%clk 0:02:59.9]} 2. Bf4 {[%clk 0:03:00.2]}
2... g6 {[%clk 0:03:00.3]} 3. e3 {[%clk 0:02:59.2]} 3... Bg7 {[%clk 0:03:00.8]}
4. h4 {[%clk 0:02:57.8]} 4... O-O {[%clk 0:03:01.7]} 5. c3 {[%clk 0:02:51.5]}
5... d6 {[%clk 0:03:02.1]} 6. Bd3 {[%clk 0:02:46.3]} 6... Nc6 {[%clk 0:03:00.7]}
7. Bh2 {[%clk 0:02:34.2]} 7... e5 {[%clk 0:03:00.1]} 8. Ne2 {[%clk 0:02:30.6]}
8... e4 {[%clk 0:02:58.1]} 9. Bc2 {[%clk 0:02:29.6]} 9... Bg4 {[%clk 0:02:57]}
10. c4 {[%clk 0:02:20.4]} 10... Ne7 {[%clk 0:02:49.8]} 11. Nbc3 {[%clk
0:02:17.1]} 11... d5 {[%clk 0:02:41.3]} 12. cxd5 {[%clk 0:02:13.8]} 12... Nexd5
{[%clk 0:02:40.6]} 13. Nxe4 {[%clk 0:02:10.1]} 13... Nxe4 {[%clk 0:02:32.8]} 14.
Bxe4 {[%clk 0:02:11]} 14... Nxe3 {[%clk 0:02:19.1]} 15. fxe3 {[%clk 0:01:11.4]}
15... Qxh4+ {[%clk 0:02:18.6]} 16. g3 {[%clk 0:01:12]} 16... Qe7 {[%clk
0:02:19.1]} 17. Qd3 {[%clk 0:01:03.8]} 17... Rae8 {[%clk 0:02:17.5]} 18. Nc3
{[%clk 0:01:01.3]} 18... c6 {[%clk 0:02:11.2]} 19. Bg1 {[%clk 0:00:55.1]} 19...
f5 {[%clk 0:02:09.1]} 20. Bg2 {[%clk 0:00:54.9]} 20... Qd6 {[%clk 0:01:55.6]}
21. Bf2 {[%clk 0:00:53.2]} 21... h5 {[%clk 0:01:51.2]} 22. O-O {[%clk
0:00:50.2]} 22... Kh7 {[%clk 0:01:43.9]} 23. e4 {[%clk 0:00:48.9]} 23... Rd8
{[%clk 0:01:25.1]} 24. exf5 {[%clk 0:00:27.8]} 24... Bxf5 {[%clk 0:01:26]} 25.
Be4 {[%clk 0:00:26.7]} 25... Bxd4 {[%clk 0:01:17.5]} 26. Bxf5 {[%clk 0:00:18.6]}
26... Rxf5 {[%clk 0:00:46.4]} 27. Bxd4 {[%clk 0:00:17.7]} 27... Rxf1+ {[%clk
0:00:47.3]} 28. Rxf1 {[%clk 0:00:17.2]} 28... Qxd4+ {[%clk 0:00:48.2]} 29. Qxd4
{[%clk 0:00:17]} 29... Rxd4 {[%clk 0:00:49.1]} 30. Rf7+ {[%clk 0:00:17.3]} 30...
Kh6 {[%clk 0:00:49.8]} 31. Rxb7 {[%clk 0:00:18]} 31... a5 {[%clk 0:00:49.9]} 32.
Rb6 {[%clk 0:00:17.3]} 32... c5 {[%clk 0:00:48.5]} 33. Kf2 {[%clk 0:00:16.6]}
33... Kg5 {[%clk 0:00:41.9]} 34. Rb5 {[%clk 0:00:12.4]} 34... Kg4 {[%clk
0:00:41.9]} 35. Ne2 {[%clk 0:00:12]} 35... Rd2 {[%clk 0:00:38.2]} 36. Rxc5
{[%clk 0:00:11.8]} 36... Rxb2 {[%clk 0:00:38]} 37. Rxa5 {[%clk 0:00:12.4]} 37...
g5 {[%clk 0:00:32.6]} 38. Ra4+ {[%clk 0:00:10.6]} 38... Kh3 {[%clk 0:00:32.8]}
39. a3 {[%clk 0:00:09.9]} 39... Ra2 {[%clk 0:00:31.4]} 40. Kf3 {[%clk
0:00:08.8]} 40... g4+ {[%clk 0:00:27.9]} 41. Ke3 {[%clk 0:00:07.7]} 41... Kg2
{[%clk 0:00:21]} 42. Ra8 {[%clk 0:00:06.1]} 42... Kf1 {[%clk 0:00:17.4]} 43. Nf4
{[%clk 0:00:06.2]} 43... h4 {[%clk 0:00:15.7]} 44. gxh4 {[%clk 0:00:06.6]} 44...
g3 {[%clk 0:00:16.6]} 45. h5 {[%clk 0:00:06.7]} 45... Rb2 {[%clk 0:00:11.1]} 46.
h6 {[%clk 0:00:05.9]} 46... Rb3+ {[%clk 0:00:10.5]} 47. Ke4 {[%clk 0:00:04.8]}
47... Rb7 {[%clk 0:00:10.4]} 48. Rg8 {[%clk 0:00:03.5]} 48... Kf2 {[%clk
0:00:10]} 49. Rg6 {[%clk 0:00:03.6]} 49... Re7+ {[%clk 0:00:09.6]} 50. Kf5
{[%clk 0:00:03.3]} 50... Rf7+ {[%clk 0:00:09.6]} 51. Kg4 {[%clk 0:00:03.7]}
51... Ra7 {[%clk 0:00:06.7]} 52. Rg7 {[%clk 0:00:03.4]} 52... Ra6 {[%clk
0:00:06.3]} 53. h7 {[%clk 0:00:03.5]} 53... Rh6 {[%clk 0:00:06.9]} 54. Kg5
{[%clk 0:00:03.5]} 54... Rh1 {[%clk 0:00:07]} 55. Kf5 {[%clk 0:00:03.7]} 55...
Kf3 {[%clk 0:00:06.8]} 56. a4 {[%clk 0:00:03.9]} 56... Rh6 {[%clk 0:00:05.5]}
57. a5 {[%clk 0:00:03.4]} 57... g2 {[%clk 0:00:05.9]} 58. Nxg2 {[%clk
0:00:02.6]} 58... Rh5+ {[%clk 0:00:06.4]} 59. Kg6 {[%clk 0:00:02.1]} 59... Rh2
{[%clk 0:00:05.7]} 60. Nf4 {[%clk 0:00:01.7]} 60... Rh1 {[%clk 0:00:05.3]} 61.
Rg8 {[%clk 0:00:02.2]} 61... Rg1+ {[%clk 0:00:06.2]} 62. Kf7 {[%clk 0:00:02.7]}
62... Rh1 {[%clk 0:00:07]} 63. h8=Q {[%clk 0:00:02.9]} 63... Rxh8 {[%clk
0:00:07.3]} 64. Rxh8 {[%clk 0:00:03.8]} 64... Kxf4 {[%clk 0:00:08.1]} 65. Re8
{[%clk 0:00:04]} 65... Kf5 {[%clk 0:00:08.3]} 66. a6 {[%clk 0:00:04.9]} 66...
Kg5 {[%clk 0:00:09.2]} 67. a7 {[%clk 0:00:05.8]} 67... Kh6 {[%clk 0:00:10.1]}
68. a8=Q {[%clk 0:00:05.9]} 68... Kg5 {[%clk 0:00:11]} 69. Qd5+ {[%clk
0:00:06.2]} 69... Kh6 {[%clk 0:00:11.9]} 70. Re6+ {[%clk 0:00:06.2]} 70... Kh7
{[%clk 0:00:12.7]} 71. Qh5# {[%clk 0:00:06.5]} 1-0

[Event "Late-Titled-Tuesday-Blitz-October-24-2023"]
[Site "Chess.com"]
[Date "2023.10.24"]
[Round "4"]
[White "MikeSailer"]
[Black "Zhbugnoimt"]
[Result "0-1"]
[WhiteElo "2054"]
[BlackElo "2540"]
[TimeControl "180+1"]
[EndTime "14:41:03 PDT"]
[Termination "Zhbugnoimt won on time"]

1. d4 {[%clk 0:02:59.9]} 1... Nf6 {[%clk 0:02:55.9]} 2. Bg5 {[%clk 0:02:59.1]}
2... d5 {[%clk 0:02:55.8]} 3. Bxf6 {[%clk 0:02:46.9]} 3... gxf6 {[%clk
0:02:55.3]} 4. Nc3 {[%clk 0:02:31.8]} 4... f5 {[%clk 0:02:34]} 5. e3 {[%clk
0:02:18.1]} 5... e6 {[%clk 0:02:34.3]} 6. Nf3 {[%clk 0:02:12.3]} 6... c5 {[%clk
0:02:33.7]} 7. Bb5+ {[%clk 0:02:12.2]} 7... Bd7 {[%clk 0:02:31.5]} 8. Ne5 {[%clk
0:02:02.5]} 8... Bxb5 {[%clk 0:02:30.3]} 9. Nxb5 {[%clk 0:02:03]} 9... h5 {[%clk
0:02:23]} 10. O-O {[%clk 0:01:38.7]} 10... Qb6 {[%clk 0:02:17.2]} 11. a4 {[%clk
0:01:27.2]} 11... a6 {[%clk 0:02:16.6]} 12. dxc5 {[%clk 0:01:23.7]} 12... Bxc5
{[%clk 0:02:15.7]} 13. Nd4 {[%clk 0:01:23.5]} 13... Nc6 {[%clk 0:02:11.6]} 14.
Ndxc6 {[%clk 0:01:06.4]} 14... bxc6 {[%clk 0:02:12.5]} 15. c4 {[%clk 0:01:00]}
15... Bd6 {[%clk 0:02:05.4]} 16. a5 {[%clk 0:00:51.7]} 16... Qc7 {[%clk
0:02:00.7]} 17. Nf3 {[%clk 0:00:43.3]} 17... Rb8 {[%clk 0:01:58.8]} 18. cxd5
{[%clk 0:00:42.1]} 18... cxd5 {[%clk 0:01:57.8]} 19. Qd4 {[%clk 0:00:37]} 19...
Rg8 {[%clk 0:01:19.5]} 20. Rfc1 {[%clk 0:00:30.3]} 20... Qd7 {[%clk 0:01:12.5]}
21. Ne5 {[%clk 0:00:26.6]} 21... Qb5 {[%clk 0:01:06.2]} 22. Rc2 {[%clk
0:00:16.1]} 22... Rd8 {[%clk 0:00:45.4]} 23. Rac1 {[%clk 0:00:15.4]} 23... Qb7
{[%clk 0:00:31.1]} 24. f4 {[%clk 0:00:15.2]} 24... h4 {[%clk 0:00:29.3]} 25. h3
{[%clk 0:00:14.4]} 25... Be7 {[%clk 0:00:18.7]} 26. Rc7 {[%clk 0:00:13.8]} 26...
Qb4 {[%clk 0:00:12]} 27. Qa7 {[%clk 0:00:11]} 27... f6 {[%clk 0:00:08.5]} 28.
Rxe7+ {[%clk 0:00:10.1]} 28... Qxe7 {[%clk 0:00:08.3]} 29. Rc7 {[%clk
0:00:10.3]} 29... Rg7 {[%clk 0:00:06.4]} 30. Rxe7+ {[%clk 0:00:10]} 30... Rxe7
{[%clk 0:00:07.3]} 31. Qxa6 {[%clk 0:00:09.4]} 31... fxe5 {[%clk 0:00:08.2]} 32.
fxe5 {[%clk 0:00:10]} 32... Kf7 {[%clk 0:00:07.9]} 33. Qb6 {[%clk 0:00:09.5]}
33... Rdd7 {[%clk 0:00:06.3]} 34. b4 {[%clk 0:00:09.3]} 34... Rb7 {[%clk
0:00:06.1]} 35. Qc5 {[%clk 0:00:09.7]} 35... Rec7 {[%clk 0:00:06.4]} 36. Qd4
{[%clk 0:00:10.2]} 36... Rc4 {[%clk 0:00:06.4]} 37. Qd2 {[%clk 0:00:08.1]} 37...
Rcxb4 {[%clk 0:00:06.9]} 38. e4 {[%clk 0:00:07.4]} 38... Ra4 {[%clk 0:00:05.1]}
39. Qg5 {[%clk 0:00:07.2]} 39... Rb1+ {[%clk 0:00:04.4]} 40. Kh2 {[%clk
0:00:07.2]} 40... Raa1 {[%clk 0:00:05.3]} 41. Qf6+ {[%clk 0:00:07.7]} 41... Ke8
{[%clk 0:00:05.8]} 42. Qxe6+ {[%clk 0:00:08.3]} 42... Kd8 {[%clk 0:00:06.7]} 43.
Qd6+ {[%clk 0:00:08.8]} 43... Kc8 {[%clk 0:00:07.4]} 44. Qc6+ {[%clk 0:00:08.9]}
44... Kb8 {[%clk 0:00:08]} 45. Qd6+ {[%clk 0:00:08.8]} 45... Ka7 {[%clk
0:00:08.1]} 46. Qc7+ {[%clk 0:00:08.3]} 46... Ka6 {[%clk 0:00:08.7]} 47. Qc6+
{[%clk 0:00:08.4]} 47... Kxa5 {[%clk 0:00:09.4]} 48. Qxd5+ {[%clk 0:00:08.3]}
48... Kb4 {[%clk 0:00:09.7]} 49. Qd4+ {[%clk 0:00:08.4]} 49... Kb3 {[%clk
0:00:10.2]} 50. Qd3+ {[%clk 0:00:08.8]} 50... Kb2 {[%clk 0:00:10.8]} 51. Qd2+
{[%clk 0:00:09]} 51... Ka3 {[%clk 0:00:11.4]} 52. Qc3+ {[%clk 0:00:09.3]} 52...
Ka4 {[%clk 0:00:11.8]} 53. Qc4+ {[%clk 0:00:09.9]} 53... Rb4 {[%clk 0:00:11.5]}
54. Qc2+ {[%clk 0:00:08.6]} 54... Kb5 {[%clk 0:00:11.8]} 55. Qd3+ {[%clk
0:00:08.2]} 55... Ka5 {[%clk 0:00:09.9]} 56. Qd8+ {[%clk 0:00:06.8]} 56... Kb5
{[%clk 0:00:09.4]} 57. Qb8+ {[%clk 0:00:06.8]} 57... Kc4 {[%clk 0:00:09.4]} 58.
Qc7+ {[%clk 0:00:07.1]} 58... Kd3 {[%clk 0:00:09.5]} 59. Qd6+ {[%clk 0:00:07]}
59... Rd4 {[%clk 0:00:10]} 60. Qc5 {[%clk 0:00:04]} 60... Kxe4 {[%clk
0:00:09.9]} 61. e6 {[%clk 0:00:03.7]} 61... Rdd1 {[%clk 0:00:10.5]} 62. Qc4+
{[%clk 0:00:03.3]} 62... Ke5 {[%clk 0:00:09.3]} 63. Qc5+ {[%clk 0:00:03.1]}
63... Kf4 {[%clk 0:00:09.9]} 64. Qc4+ {[%clk 0:00:03.5]} 64... Kg5 {[%clk
0:00:10.4]} 65. g4 {[%clk 0:00:01.2]} 65... Rd2+ {[%clk 0:00:09.4]} 0-1

[Event "Late-Titled-Tuesday-Blitz-October-24-2023"]
[Site "Chess.com"]
[Date "2023.10.24"]
[Round "4"]
[White "Semetey"]
[Black "Aygehovit1992"]
[Result "0-1"]
[WhiteElo "2520"]
[BlackElo "2659"]
[TimeControl "180+1"]
[EndTime "14:41:04 PDT"]
[Termination "Aygehovit1992 won on time"]

1. a3 {[%clk 0:03:00.9]} 1... g6 {[%clk 0:02:59.5]} 2. e4 {[%clk 0:02:56.6]}
2... Bg7 {[%clk 0:03:00.4]} 3. d4 {[%clk 0:02:56.3]} 3... d6 {[%clk 0:02:59.2]}
4. Nf3 {[%clk 0:02:56.3]} 4... Nf6 {[%clk 0:02:58.2]} 5. Nc3 {[%clk 0:02:55.9]}
5... O-O {[%clk 0:02:58.3]} 6. h3 {[%clk 0:02:53.9]} 6... e5 {[%clk 0:02:52.4]}
7. dxe5 {[%clk 0:02:53.1]} 7... dxe5 {[%clk 0:02:52.8]} 8. Qxd8 {[%clk
0:02:52.8]} 8... Rxd8 {[%clk 0:02:53.7]} 9. Bg5 {[%clk 0:02:51.9]} 9... Re8
{[%clk 0:02:49.3]} 10. Bc4 {[%clk 0:02:34.2]} 10... c6 {[%clk 0:02:44.1]} 11.
O-O-O {[%clk 0:02:31.4]} 11... Nbd7 {[%clk 0:02:41.7]} 12. Be3 {[%clk
0:02:25.1]} 12... Nf8 {[%clk 0:02:25.1]} 13. Rd6 {[%clk 0:02:04.9]} 13... Be6
{[%clk 0:02:12.4]} 14. Bxe6 {[%clk 0:02:04.1]} 14... Nxe6 {[%clk 0:02:13.3]} 15.
Rhd1 {[%clk 0:01:56.8]} 15... Bf8 {[%clk 0:02:00.1]} 16. R6d2 {[%clk 0:01:53.1]}
16... Bc5 {[%clk 0:01:59.4]} 17. Bxc5 {[%clk 0:01:20]} 17... Nxc5 {[%clk
0:02:00.3]} 18. Re2 {[%clk 0:01:15.2]} 18... a5 {[%clk 0:01:58.5]} 19. a4 {[%clk
0:01:13.6]} 19... Kg7 {[%clk 0:01:42]} 20. g3 {[%clk 0:01:09.9]} 20... Rab8
{[%clk 0:01:42]} 21. b3 {[%clk 0:01:08.7]} 21... b5 {[%clk 0:01:40.1]} 22. axb5
{[%clk 0:01:08.3]} 22... cxb5 {[%clk 0:01:40.4]} 23. Kb2 {[%clk 0:01:00.4]}
23... b4 {[%clk 0:01:39.1]} 24. Nd5 {[%clk 0:00:57.6]} 24... Nfxe4 {[%clk
0:01:31.2]} 25. Rde1 {[%clk 0:00:53]} 25... f5 {[%clk 0:01:31.1]} 26. Nd2 {[%clk
0:00:47.6]} 26... Red8 {[%clk 0:01:17.1]} 27. Nxe4 {[%clk 0:00:47.3]} 27... Nxe4
{[%clk 0:01:16.5]} 28. Rd1 {[%clk 0:00:35.4]} 28... Rd7 {[%clk 0:00:44]} 29. f3
{[%clk 0:00:27.3]} 29... Nxg3 {[%clk 0:00:40.4]} 30. Rxe5 {[%clk 0:00:27.5]}
30... Rbd8 {[%clk 0:00:37.7]} 31. Kc1 {[%clk 0:00:26.7]} 31... h5 {[%clk
0:00:34.3]} 32. h4 {[%clk 0:00:25.5]} 32... Kh6 {[%clk 0:00:28.3]} 33. c4 {[%clk
0:00:25]} 33... bxc3 {[%clk 0:00:28.1]} 34. Nxc3 {[%clk 0:00:25]} 34... Rxd1+
{[%clk 0:00:27.3]} 35. Nxd1 {[%clk 0:00:25.9]} 35... Rd3 {[%clk 0:00:23.3]} 36.
Kc2 {[%clk 0:00:15.3]} 36... Rxf3 {[%clk 0:00:22.5]} 37. Rxa5 {[%clk 0:00:15.9]}
37... Rf4 {[%clk 0:00:21.7]} 38. Ra4 {[%clk 0:00:15.3]} 38... Ne4 {[%clk
0:00:18.6]} 39. Rd4 {[%clk 0:00:13.5]} 39... Rxh4 {[%clk 0:00:18.5]} 40. b4
{[%clk 0:00:13.7]} 40... Rh2+ {[%clk 0:00:19]} 41. Kb3 {[%clk 0:00:14.1]} 41...
Rh3+ {[%clk 0:00:15.3]} 42. Ka4 {[%clk 0:00:13.6]} 42... Nc3+ {[%clk 0:00:15.1]}
43. Nxc3 {[%clk 0:00:13.4]} 43... Rxc3 {[%clk 0:00:16]} 44. b5 {[%clk
0:00:13.5]} 44... Kg5 {[%clk 0:00:14.1]} 45. Rd1 {[%clk 0:00:13.1]} 45... Rc8
{[%clk 0:00:13.4]} 46. Rg1+ {[%clk 0:00:12.6]} 46... Kf6 {[%clk 0:00:13.4]} 47.
b6 {[%clk 0:00:12.8]} 47... g5 {[%clk 0:00:13.6]} 48. Kb5 {[%clk 0:00:13.1]}
48... g4 {[%clk 0:00:13.7]} 49. b7 {[%clk 0:00:13.1]} 49... Rg8 {[%clk
0:00:13.2]} 50. Kc6 {[%clk 0:00:13.1]} 50... Kg5 {[%clk 0:00:13.5]} 51. Rd1
{[%clk 0:00:11.4]} 51... Rb8 {[%clk 0:00:10.7]} 52. Kc7 {[%clk 0:00:09.9]} 52...
Rxb7+ {[%clk 0:00:11]} 53. Kxb7 {[%clk 0:00:10.8]} 53... h4 {[%clk 0:00:11.8]}
54. Kc6 {[%clk 0:00:11]} 54... h3 {[%clk 0:00:12.4]} 55. Kd5 {[%clk 0:00:11.5]}
55... g3 {[%clk 0:00:10.6]} 56. Kd4 {[%clk 0:00:06.6]} 56... h2 {[%clk
0:00:08.5]} 57. Ke3 {[%clk 0:00:06.5]} 57... g2 {[%clk 0:00:08.7]} 58. Kf2
{[%clk 0:00:06.9]} 58... h1=Q {[%clk 0:00:08.9]} 59. Rg1 {[%clk 0:00:02.9]}
59... Qh4+ {[%clk 0:00:07.2]} 60. Kxg2 {[%clk 0:00:02.7]} 60... Qc4 {[%clk
0:00:07.6]} 61. Kh2+ {[%clk 0:00:02.7]} 61... Kf4 {[%clk 0:00:07.6]} 62. Rf1+
{[%clk 0:00:01.9]} 62... Kg4 {[%clk 0:00:07.5]} 63. Rg1+ {[%clk 0:00:02]} 63...
Kh4 {[%clk 0:00:07.5]} 64. Rg3 {[%clk 0:00:01.2]} 64... Qf4 {[%clk 0:00:06.9]}
65. Kh1 {[%clk 0:00:01.4]} 65... Kxg3 {[%clk 0:00:07.1]} 0-1

[Event "Late-Titled-Tuesday-Blitz-October-24-2023"]
[Site "Chess.com"]
[Date "2023.10.24"]
[Round "4"]
[White "BasilSmash"]
[Black "Truequitos"]
[Result "0-1"]
[WhiteElo "2609"]
[BlackElo "2492"]
[TimeControl "180+1"]
[EndTime "14:41:05 PDT"]
[Termination "Truequitos won on time"]

1. e4 {[%clk 0:02:55.2]} 1... e6 {[%clk 0:02:59.9]} 2. d4 {[%clk 0:02:53.8]}
2... d5 {[%clk 0:03:00.3]} 3. Bd3 {[%clk 0:02:53.8]} 3... dxe4 {[%clk 0:02:59]}
4. Bxe4 {[%clk 0:02:54.7]} 4... Nf6 {[%clk 0:02:59.6]} 5. Bf3 {[%clk 0:02:55]}
5... Nbd7 {[%clk 0:03:00.2]} 6. Ne2 {[%clk 0:02:51.7]} 6... Bd6 {[%clk
0:02:59.7]} 7. O-O {[%clk 0:02:51.4]} 7... e5 {[%clk 0:03:00.1]} 8. Re1 {[%clk
0:02:48.1]} 8... O-O {[%clk 0:02:56.3]} 9. Nbc3 {[%clk 0:02:47.6]} 9... Re8
{[%clk 0:02:54]} 10. g3 {[%clk 0:02:27.7]} 10... exd4 {[%clk 0:02:50.5]} 11.
Nxd4 {[%clk 0:02:26.2]} 11... Ne5 {[%clk 0:02:49]} 12. Bg2 {[%clk 0:02:24.6]}
12... Bg4 {[%clk 0:02:49.2]} 13. Qd2 {[%clk 0:01:53]} 13... Bc5 {[%clk
0:02:47.5]} 14. Nb3 {[%clk 0:01:51.7]} 14... Bb6 {[%clk 0:02:36.4]} 15. Qxd8
{[%clk 0:01:46.8]} 15... Raxd8 {[%clk 0:02:35.8]} 16. Be3 {[%clk 0:01:34.6]}
16... Nf3+ {[%clk 0:02:32.9]} 17. Bxf3 {[%clk 0:01:34.4]} 17... Bxf3 {[%clk
0:02:33.8]} 18. Bxb6 {[%clk 0:01:31.2]} 18... axb6 {[%clk 0:02:32.1]} 19. Rxe8+
{[%clk 0:01:31.2]} 19... Nxe8 {[%clk 0:02:28.5]} 20. Re1 {[%clk 0:01:30]} 20...
Kf8 {[%clk 0:02:27.4]} 21. Re3 {[%clk 0:01:29.2]} 21... Bc6 {[%clk 0:02:26.5]}
22. f3 {[%clk 0:01:25.2]} 22... Nd6 {[%clk 0:02:19.2]} 23. Rd3 {[%clk 0:01:24]}
23... Ke8 {[%clk 0:02:16.1]} 24. Nd2 {[%clk 0:01:17.2]} 24... Nf5 {[%clk
0:02:05.9]} 25. Rxd8+ {[%clk 0:01:16.5]} 25... Kxd8 {[%clk 0:02:06.8]} 26. Ne2
{[%clk 0:01:12.9]} 26... Ne3 {[%clk 0:02:05.2]} 27. c3 {[%clk 0:01:09]} 27...
Nd1 {[%clk 0:02:05.4]} 28. b3 {[%clk 0:01:04.3]} 28... Kd7 {[%clk 0:01:58.1]}
29. c4 {[%clk 0:00:54.7]} 29... b5 {[%clk 0:01:53.8]} 30. Nd4 {[%clk 0:00:52.1]}
30... bxc4 {[%clk 0:01:51.2]} 31. Nxc4 {[%clk 0:00:48.8]} 31... Bd5 {[%clk
0:01:42.5]} 32. Ne5+ {[%clk 0:00:48.5]} 32... Kd6 {[%clk 0:01:40.2]} 33. f4
{[%clk 0:00:44.3]} 33... g6 {[%clk 0:01:33.2]} 34. Nb5+ {[%clk 0:00:32.5]} 34...
Kc5 {[%clk 0:01:33.4]} 35. Nxc7 {[%clk 0:00:30.6]} 35... f5 {[%clk 0:00:50.8]}
36. Nd7+ {[%clk 0:00:24]} 36... Kd6 {[%clk 0:00:44.1]} 37. Nxd5 {[%clk
0:00:23.8]} 37... Kxd5 {[%clk 0:00:43.6]} 38. Nf6+ {[%clk 0:00:23.4]} 38... Ke6
{[%clk 0:00:39.9]} 39. Nxh7 {[%clk 0:00:22.5]} 39... Nc3 {[%clk 0:00:40.3]} 40.
a4 {[%clk 0:00:21.5]} 40... Ne2+ {[%clk 0:00:30.7]} 41. Kf2 {[%clk 0:00:19.1]}
41... Nc1 {[%clk 0:00:31.1]} 42. Nf8+ {[%clk 0:00:13.2]} 42... Kf7 {[%clk
0:00:29.1]} 43. Nd7 {[%clk 0:00:13.3]} 43... Nxb3 {[%clk 0:00:28.9]} 44. Ke3
{[%clk 0:00:12.2]} 44... Ke6 {[%clk 0:00:27.9]} 45. Ne5 {[%clk 0:00:11.4]} 45...
g5 {[%clk 0:00:26.3]} 46. Nd3 {[%clk 0:00:08.7]} 46... g4 {[%clk 0:00:24.6]} 47.
Ke2 {[%clk 0:00:06.9]} 47... Kd5 {[%clk 0:00:20.2]} 48. Nf2 {[%clk 0:00:04.4]}
48... Nd4+ {[%clk 0:00:18.3]} 49. Kd3 {[%clk 0:00:03.9]} 49... Nf3 {[%clk
0:00:18.4]} 50. h4 {[%clk 0:00:03.4]} 50... gxh3 {[%clk 0:00:10.6]} 51. Nxh3
{[%clk 0:00:03.6]} 51... Ne1+ {[%clk 0:00:08.3]} 52. Kc3 {[%clk 0:00:02.3]}
52... Ng2 {[%clk 0:00:06.3]} 53. Ng5 {[%clk 0:00:01.5]} 53... Ne3 {[%clk
0:00:05.4]} 54. Kd3 {[%clk 0:00:01.5]} 54... Nf1 {[%clk 0:00:05.5]} 55. Nf3
{[%clk 0:00:01.6]} 55... Nxg3 {[%clk 0:00:05.7]} 56. Nd4 {[%clk 0:00:01.9]}
56... Nh5 {[%clk 0:00:04.8]} 57. Ke3 {[%clk 0:00:02]} 57... Nxf4 {[%clk
0:00:04.8]} 58. Kxf4 {[%clk 0:00:02.2]} 58... Kxd4 {[%clk 0:00:05.4]} 59. Kxf5
{[%clk 0:00:03.1]} 59... Kc5 {[%clk 0:00:05.9]} 60. Ke4 {[%clk 0:00:03.5]} 60...
Kb4 {[%clk 0:00:06.3]} 61. Kd4 {[%clk 0:00:03.9]} 61... Kxa4 {[%clk 0:00:06.5]}
62. Kc5 {[%clk 0:00:04.1]} 62... Ka5 {[%clk 0:00:07.2]} 63. Kc4 {[%clk
0:00:04.6]} 63... Ka4 {[%clk 0:00:07]} 64. Kc5 {[%clk 0:00:04.8]} 64... b5
{[%clk 0:00:07.6]} 0-1